[Event "Titled Tuesday Blitz March 28 Late 2023"]
[White "Zamorano, Jorge"]
[Black "Delorme, Axel"]
[WhiteFideId "173770"]
[BlackFideId "632023"]
[WhiteElo "2331"]
[BlackElo "2478"]
[Result "1/2-1/2"]
[Round "04"]
[TimeControl "180+2"]
[Date "2023.03.28"]
[WhiteClock "0:00:04"]
[BlackClock "0:00:08"]

1. e4 {[%clk 0:02:15]}  c5 {[%clk 0:02:59]} 2. Nf3 {[%clk 0:02:15]}  d6 {[%clk 0:02:59]} 3. d4 {[%clk 0:02:15]}  cxd4 {[%clk 0:03:00]} 4. Nxd4 {[%clk 0:02:15]}  Nf6 {[%clk 0:03:01]} 5. Nc3 {[%clk 0:02:15]}  a6 {[%clk 0:03:01]} 6. Bc4 {[%clk 0:02:16]}  Nbd7 {[%clk 0:03:01]} 7. Bb3 {[%clk 0:02:13]}  Nc5 {[%clk 0:03:00]} 8. f4 {[%clk 0:02:13]}  Bg4 {[%clk 0:02:38]} 9. Nf3 {[%clk 0:02:03]}  e6 {[%clk 0:02:21]} 10. h3 {[%clk 0:01:59]}  Bxf3 {[%clk 0:02:17]} 11. Qxf3 {[%clk 0:02:00]}  Qc7 {[%clk 0:02:13]} 12. f5 {[%clk 0:01:19]}  Nxb3 {[%clk 0:02:10]} 13. axb3 {[%clk 0:01:18]}  Be7 {[%clk 0:02:08]} 14. O-O {[%clk 0:01:13]}  O-O {[%clk 0:02:05]} 15. Bg5 {[%clk 0:00:59]}  h6 {[%clk 0:01:28]} 16. Bh4 {[%clk 0:00:58]}  Rad8 {[%clk 0:01:11]} 17. Kh1 {[%clk 0:00:54]}  d5 {[%clk 0:01:05]} 18. fxe6 {[%clk 0:00:40]}  fxe6 {[%clk 0:00:57]} 19. exd5 {[%clk 0:00:41]}  Nxd5 {[%clk 0:00:54]} 20. Nxd5 {[%clk 0:00:39]}  Rxf3 {[%clk 0:00:38]} 21. Nxc7 {[%clk 0:00:38]}  Rxf1+ {[%clk 0:00:39]} 22. Rxf1 {[%clk 0:00:37]}  Bxh4 {[%clk 0:00:40]} 23. Nxe6 {[%clk 0:00:29]}  Rd2 {[%clk 0:00:40]} 24. Rf8+ {[%clk 0:00:23]}  Kh7 {[%clk 0:00:39]} 25. Rf7 {[%clk 0:00:24]}  Bf6 {[%clk 0:00:24]} 26. c4 {[%clk 0:00:15]}  Be5 {[%clk 0:00:16]} 27. g4 {[%clk 0:00:15]}  b5 {[%clk 0:00:13]} 28. Rb7 {[%clk 0:00:10]}  Rxb2 {[%clk 0:00:11]} 29. cxb5 {[%clk 0:00:09]}  axb5 {[%clk 0:00:12]} 30. Rxb5 {[%clk 0:00:09]}  Bg3 {[%clk 0:00:09]} 31. Kg1 {[%clk 0:00:07]}  Kg6 {[%clk 0:00:07]} 32. Nc5 {[%clk 0:00:03]}  Bf2+ {[%clk 0:00:06]} 33. Kf1 {[%clk 0:00:03]}  Bxc5 {[%clk 0:00:07]} 34. Rxc5 {[%clk 0:00:03]}  Rxb3 {[%clk 0:00:08]} 35. Kg2 {[%clk 0:00:04]}  Kh7 {[%clk 0:00:08]} 1/2-1/2


[Site "https://www.chess.com"]

[Event "Titled Tuesday Blitz March 28 Late 2023"]
[White "marik_spb"]
[Black "Krstulovic, Alex"]
[BlackFideId "760056"]
[WhiteElo "2401"]
[BlackElo "2311"]
[Result "0-1"]
[Round "04"]
[TimeControl "180+2"]
[Date "2023.03.28"]
[WhiteClock "0:00:06"]
[BlackClock "0:00:18"]

1. d4 {[%clk 0:02:59]}  Nf6 {[%clk 0:02:59]} 2. c4 {[%clk 0:03:00]}  g6 {[%clk 0:02:59]} 3. Nf3 {[%clk 0:03:00]}  Bg7 {[%clk 0:03:00]} 4. g3 {[%clk 0:03:01]}  O-O {[%clk 0:03:01]} 5. Bg2 {[%clk 0:03:01]}  d6 {[%clk 0:03:02]} 6. Nc3 {[%clk 0:03:02]}  Nc6 {[%clk 0:03:01]} 7. O-O {[%clk 0:03:01]}  e5 {[%clk 0:03:02]} 8. dxe5 {[%clk 0:02:58]}  dxe5 {[%clk 0:03:03]} 9. Qxd8 {[%clk 0:02:57]}  Rxd8 {[%clk 0:03:03]} 10. Bg5 {[%clk 0:02:57]}  Be6 {[%clk 0:03:04]} 11. b3 {[%clk 0:02:57]}  h6 {[%clk 0:02:47]} 12. Bxf6 {[%clk 0:02:54]}  Bxf6 {[%clk 0:02:47]} 13. Ne4 {[%clk 0:02:54]}  Be7 {[%clk 0:02:47]} 14. Rad1 {[%clk 0:02:54]}  f5 {[%clk 0:02:46]} 15. Nc3 {[%clk 0:02:54]}  e4 {[%clk 0:02:37]} 16. Nd2 {[%clk 0:02:52]}  Bb4 {[%clk 0:02:28]} 17. Ndb1 {[%clk 0:02:53]}  Nd4 {[%clk 0:02:12]} 18. f3 {[%clk 0:02:35]}  e3 {[%clk 0:01:56]} 19. f4 {[%clk 0:02:31]}  c6 {[%clk 0:01:57]} 20. Kh1 {[%clk 0:01:37]}  a5 {[%clk 0:01:56]} 21. Rd3 {[%clk 0:01:31]}  Nc2 {[%clk 0:01:43]} 22. Rfd1 {[%clk 0:01:29]}  Rxd3 {[%clk 0:01:38]} 23. Rxd3 {[%clk 0:01:28]}  a4 {[%clk 0:01:38]} 24. Nxa4 {[%clk 0:01:19]}  Bxc4 {[%clk 0:01:35]} 25. bxc4 {[%clk 0:01:13]}  Rxa4 {[%clk 0:01:35]} 26. a3 {[%clk 0:00:35]}  Bc5 {[%clk 0:01:25]} 27. Rb3 {[%clk 0:00:20]}  Rxc4 {[%clk 0:01:10]} 28. Rxb7 {[%clk 0:00:20]}  Nxa3 {[%clk 0:01:11]} 29. Nxa3 {[%clk 0:00:14]}  Rc1+ {[%clk 0:01:10]} 30. Bf1 {[%clk 0:00:14]}  Rxf1+ {[%clk 0:01:11]} 31. Kg2 {[%clk 0:00:15]}  Rf2+ {[%clk 0:01:11]} 32. Kh3 {[%clk 0:00:15]}  Bxa3 {[%clk 0:01:11]} 33. Rc7 {[%clk 0:00:15]}  c5 {[%clk 0:01:09]} 34. g4 {[%clk 0:00:15]}  Rxf4 {[%clk 0:01:06]} 35. gxf5 {[%clk 0:00:15]}  Rxf5 {[%clk 0:01:06]} 36. Kg4 {[%clk 0:00:15]}  Rf2 {[%clk 0:01:03]} 37. h4 {[%clk 0:00:15]}  Rxe2 {[%clk 0:01:01]} 38. Kf4 {[%clk 0:00:15]}  Rf2+ {[%clk 0:00:26]} 39. Kxe3 {[%clk 0:00:14]}  Rf7 {[%clk 0:00:27]} 40. Rc6 {[%clk 0:00:14]}  Kg7 {[%clk 0:00:23]} 41. Ke4 {[%clk 0:00:14]}  h5 {[%clk 0:00:21]} 42. Ra6 {[%clk 0:00:13]}  Bb2 {[%clk 0:00:21]} 43. Rc6 {[%clk 0:00:12]}  Bd4 {[%clk 0:00:20]} 44. Kd5 {[%clk 0:00:10]}  Rf5+ {[%clk 0:00:20]} 45. Ke4 {[%clk 0:00:10]}  Re5+ {[%clk 0:00:20]} 46. Kf4 {[%clk 0:00:10]}  Rf5+ {[%clk 0:00:19]} 47. Ke4 {[%clk 0:00:11]}  Bf2 {[%clk 0:00:18]} 48. Rc7+ {[%clk 0:00:06]}  Kh6 {[%clk 0:00:18]} 49. Rc6 {[%clk 0:00:06]}  Bxh4 {[%clk 0:00:19]} 50. Rc8 {[%clk 0:00:06]}  Bf6 {[%clk 0:00:19]} 51. Rc6 {[%clk 0:00:06]}  Kg5 {[%clk 0:00:20]} 52. Rc7 {[%clk 0:00:07]}  Bd4 {[%clk 0:00:20]} 53. Rh7 {[%clk 0:00:06]}  h4 {[%clk 0:00:21]} 54. Rg7 {[%clk 0:00:06]}  Bxg7 {[%clk 0:00:18]} 0-1


[Site "https://www.chess.com"]

[Event "Titled Tuesday Blitz March 28 Late 2023"]
[White "Buchenau, Frank"]
[Black "Gold_Ocean"]
[WhiteFideId "4604350"]
[WhiteElo "2157"]
[BlackElo "2615"]
[Result "0-1"]
[Round "04"]
[TimeControl "180+2"]
[Date "2023.03.28"]
[WhiteClock "0:00:09"]
[BlackClock "0:02:00"]

1. e4 {[%clk 0:03:00]}  c5 {[%clk 0:03:00]} 2. Nf3 {[%clk 0:03:00]}  d6 {[%clk 0:03:00]} 3. Bb5+ {[%clk 0:02:59]}  Bd7 {[%clk 0:03:00]} 4. Bxd7+ {[%clk 0:02:58]}  Qxd7 {[%clk 0:03:01]} 5. c4 {[%clk 0:02:58]}  Nc6 {[%clk 0:03:02]} 6. d4 {[%clk 0:02:58]}  cxd4 {[%clk 0:03:02]} 7. Nxd4 {[%clk 0:02:59]}  Nf6 {[%clk 0:03:02]} 8. Nc3 {[%clk 0:02:59]}  g6 {[%clk 0:03:03]} 9. f3 {[%clk 0:02:58]}  Bg7 {[%clk 0:03:03]} 10. Be3 {[%clk 0:02:58]}  O-O {[%clk 0:03:02]} 11. O-O {[%clk 0:02:58]}  Rac8 {[%clk 0:03:03]} 12. b3 {[%clk 0:02:57]}  a6 {[%clk 0:03:04]} 13. Qd3 {[%clk 0:02:49]}  Ne5 {[%clk 0:03:03]} 14. Qd2 {[%clk 0:02:47]}  Rfd8 {[%clk 0:03:03]} 15. Rac1 {[%clk 0:01:57]}  e6 {[%clk 0:02:47]} 16. Rfd1 {[%clk 0:01:56]}  d5 {[%clk 0:02:40]} 17. cxd5 {[%clk 0:01:40]}  exd5 {[%clk 0:02:40]} 18. f4 {[%clk 0:01:08]}  Rxc3 {[%clk 0:02:12]} 19. Qxc3 {[%clk 0:00:56]}  Nxe4 {[%clk 0:02:11]} 20. Qc7 {[%clk 0:00:36]}  Qxc7 {[%clk 0:02:09]} 21. Rxc7 {[%clk 0:00:37]}  Ng4 {[%clk 0:02:08]} 22. Bc1 {[%clk 0:00:30]}  Ngf2 {[%clk 0:02:04]} 23. Rd2 {[%clk 0:00:09]}  Nxd2 {[%clk 0:02:04]} 24. Kxf2 {[%clk 0:00:09]}  Bxd4+ {[%clk 0:02:02]} 25. Ke2 {[%clk 0:00:09]}  Ne4 {[%clk 0:02:00]} 0-1


[Site "https://www.chess.com"]

[Event "Titled Tuesday Blitz March 28 Late 2023"]
[White "Zavortink, Matt"]
[Black "Sochacki, Christophe"]
[WhiteFideId "2034263"]
[BlackFideId "662569"]
[WhiteElo "2395"]
[BlackElo "2474"]
[Result "0-1"]
[Round "04"]
[TimeControl "180+2"]
[Date "2023.03.28"]
[WhiteClock "0:00:03"]
[BlackClock "0:00:05"]

1. c4 {[%clk 0:03:00]}  c5 {[%clk 0:02:55]} 2. Nf3 {[%clk 0:03:00]}  Nc6 {[%clk 0:02:55]} 3. Nc3 {[%clk 0:03:00]}  Nf6 {[%clk 0:02:55]} 4. e3 {[%clk 0:03:00]}  d5 {[%clk 0:02:54]} 5. cxd5 {[%clk 0:03:00]}  Nxd5 {[%clk 0:02:55]} 6. Bb5 {[%clk 0:02:58]}  Nc7 {[%clk 0:02:52]} 7. Bc4 {[%clk 0:02:47]}  e5 {[%clk 0:02:40]} 8. O-O {[%clk 0:02:42]}  Be7 {[%clk 0:02:38]} 9. h3 {[%clk 0:02:14]}  O-O {[%clk 0:02:34]} 10. e4 {[%clk 0:02:13]}  Be6 {[%clk 0:02:25]} 11. d3 {[%clk 0:02:09]}  Nd4 {[%clk 0:02:21]} 12. a4 {[%clk 0:01:59]}  Bd6 {[%clk 0:01:56]} 13. Be3 {[%clk 0:01:54]}  Qf6 {[%clk 0:01:51]} 14. Nd2 {[%clk 0:01:31]}  Qg6 {[%clk 0:01:46]} 15. Bxe6 {[%clk 0:01:21]}  Ncxe6 {[%clk 0:01:38]} 16. Nd5 {[%clk 0:01:18]}  Kh8 {[%clk 0:01:25]} 17. Qg4 {[%clk 0:01:13]}  Rad8 {[%clk 0:01:22]} 18. Nc4 {[%clk 0:01:00]}  Bb8 {[%clk 0:01:10]} 19. Qxg6 {[%clk 0:00:47]}  hxg6 {[%clk 0:01:09]} 20. Bxd4 {[%clk 0:00:35]}  Nxd4 {[%clk 0:01:02]} 21. Nce3 {[%clk 0:00:34]}  f5 {[%clk 0:00:58]} 22. f3 {[%clk 0:00:30]}  Kh7 {[%clk 0:00:56]} 23. Rf2 {[%clk 0:00:26]}  a6 {[%clk 0:00:52]} 24. a5 {[%clk 0:00:25]}  g5 {[%clk 0:00:45]} 25. exf5 {[%clk 0:00:16]}  Nxf5 {[%clk 0:00:44]} 26. Rd1 {[%clk 0:00:12]}  Ba7 {[%clk 0:00:30]} 27. Nxf5 {[%clk 0:00:12]}  Rxd5 {[%clk 0:00:27]} 28. Ne3 {[%clk 0:00:10]}  Rd4 {[%clk 0:00:25]} 29. Nc4 {[%clk 0:00:08]}  Rfd8 {[%clk 0:00:23]} 30. Rfd2 {[%clk 0:00:08]}  Bb8 {[%clk 0:00:19]} 31. Kf1 {[%clk 0:00:08]}  Kg6 {[%clk 0:00:19]} 32. Ke2 {[%clk 0:00:08]}  Kf5 {[%clk 0:00:20]} 33. b3 {[%clk 0:00:08]}  Bc7 {[%clk 0:00:20]} 34. Ke3 {[%clk 0:00:08]}  R8d7 {[%clk 0:00:19]} 35. g4+ {[%clk 0:00:09]}  Kf6 {[%clk 0:00:18]} 36. Rh1 {[%clk 0:00:08]}  Rd8 {[%clk 0:00:18]} 37. h4 {[%clk 0:00:08]}  g6 {[%clk 0:00:15]} 38. h5 {[%clk 0:00:08]}  e4 {[%clk 0:00:13]} 39. fxe4 {[%clk 0:00:07]}  Bf4+ {[%clk 0:00:14]} 40. Ke2 {[%clk 0:00:07]}  Bxd2 {[%clk 0:00:14]} 41. Nxd2 {[%clk 0:00:07]}  Rxd3 {[%clk 0:00:14]} 42. Nf3 {[%clk 0:00:07]}  Rxb3 {[%clk 0:00:13]} 43. hxg6 {[%clk 0:00:06]}  Kxg6 {[%clk 0:00:12]} 44. Rh5 {[%clk 0:00:05]}  Kf6 {[%clk 0:00:08]} 45. e5+ {[%clk 0:00:04]}  Ke6 {[%clk 0:00:07]} 46. Rxg5 {[%clk 0:00:04]}  Rdd3 {[%clk 0:00:07]} 47. Rg6+ {[%clk 0:00:03]}  Kd5 {[%clk 0:00:07]} 48. Rd6+ {[%clk 0:00:03]}  Ke4 {[%clk 0:00:08]} 49. Nd2+ {[%clk 0:00:04]}  Rxd2+ {[%clk 0:00:08]} 50. Rxd2 {[%clk 0:00:05]}  Kxe5 {[%clk 0:00:07]} 51. Rd7 {[%clk 0:00:05]}  c4 {[%clk 0:00:06]} 52. g5 {[%clk 0:00:03]}  Kf5 {[%clk 0:00:06]} 53. Rc7 {[%clk 0:00:04]}  c3 {[%clk 0:00:05]} 54. Rc5+ {[%clk 0:00:04]}  Ke4 {[%clk 0:00:05]} 55. g6 {[%clk 0:00:04]}  Rb2+ {[%clk 0:00:05]} 56. Kd1 {[%clk 0:00:04]}  Kd4 {[%clk 0:00:05]} 57. Rc8 {[%clk 0:00:04]}  Rg2 {[%clk 0:00:05]} 58. Rd8+ {[%clk 0:00:03]}  Kc4 {[%clk 0:00:06]} 59. Rb8 {[%clk 0:00:02]}  c2+ {[%clk 0:00:04]} 60. Kc1 {[%clk 0:00:03]}  Kc3 {[%clk 0:00:05]} 61. Rc8+ {[%clk 0:00:03]}  Kb3 {[%clk 0:00:05]} 0-1


[Site "https://www.chess.com"]

[Event "Titled Tuesday Blitz March 28 Late 2023"]
[White "Atanasov, Anthony"]
[Black "drdaro"]
[WhiteFideId "2623897"]
[WhiteElo "2206"]
[BlackElo "2393"]
[Result "1-0"]
[Round "04"]
[TimeControl "180+2"]
[Date "2023.03.28"]
[WhiteClock "0:00:29"]
[BlackClock "0:00:01"]

1. d4 {[%clk 0:03:00]}  f5 {[%clk 0:02:07]} 2. c4 {[%clk 0:02:56]}  Nf6 {[%clk 0:02:05]} 3. Nc3 {[%clk 0:02:56]}  g6 {[%clk 0:02:05]} 4. h4 {[%clk 0:02:55]}  Bg7 {[%clk 0:02:02]} 5. h5 {[%clk 0:02:56]}  Nxh5 {[%clk 0:02:01]} 6. e4 {[%clk 0:02:56]}  fxe4 {[%clk 0:02:01]} 7. Rxh5 {[%clk 0:02:56]}  gxh5 {[%clk 0:02:02]} 8. Qxh5+ {[%clk 0:02:57]}  Kf8 {[%clk 0:02:01]} 9. Bh6 {[%clk 0:02:56]}  Qe8 {[%clk 0:01:55]} 10. Qxe8+ {[%clk 0:02:54]}  Kxe8 {[%clk 0:01:53]} 11. Bxg7 {[%clk 0:02:55]}  Rg8 {[%clk 0:01:54]} 12. Bh6 {[%clk 0:02:52]}  Nc6 {[%clk 0:01:45]} 13. O-O-O {[%clk 0:02:33]}  d6 {[%clk 0:01:44]} 14. Nxe4 {[%clk 0:02:20]}  Bf5 {[%clk 0:01:42]} 15. Bd3 {[%clk 0:02:13]}  Rxg2 {[%clk 0:01:35]} 16. Nxd6+ {[%clk 0:02:05]}  cxd6 {[%clk 0:01:31]} 17. Bxf5 {[%clk 0:02:06]}  Rxf2 {[%clk 0:01:31]} 18. Bg4 {[%clk 0:01:46]}  e5 {[%clk 0:00:48]} 19. Nh3 {[%clk 0:01:39]}  Rg2 {[%clk 0:00:43]} 20. Bh5+ {[%clk 0:01:34]}  Kd7 {[%clk 0:00:43]} 21. dxe5 {[%clk 0:01:30]}  Nxe5 {[%clk 0:00:44]} 22. Bf4 {[%clk 0:01:18]}  Ke7 {[%clk 0:00:22]} 23. Re1 {[%clk 0:01:09]}  Rc8 {[%clk 0:00:16]} 24. b3 {[%clk 0:00:57]}  Kf6 {[%clk 0:00:10]} 25. Rf1 {[%clk 0:00:45]}  Nd3+ {[%clk 0:00:07]} 26. Kb1 {[%clk 0:00:41]}  Nxf4 {[%clk 0:00:05]} 27. Nxf4 {[%clk 0:00:42]}  Rg5 {[%clk 0:00:02]} 28. Nd5+ {[%clk 0:00:34]}  Ke5 {[%clk 0:00:01]} 29. Re1+ {[%clk 0:00:32]}  Kd4 {[%clk 0:00:01]} 30. Rd1+ {[%clk 0:00:30]}  Kc5 {[%clk 0:00:01]} 31. b4+ {[%clk 0:00:28]}  Kxc4 {[%clk 0:00:01]} 32. Be2# {[%clk 0:00:29]} 1-0


[Site "https://www.chess.com"]

[Event "Titled Tuesday Blitz March 28 Late 2023"]
[White "Romanchuk, Viktor"]
[Black "Abduzhaparov"]
[WhiteFideId "14109271"]
[WhiteElo "2242"]
[BlackElo "2386"]
[Result "1-0"]
[Round "04"]
[TimeControl "180+2"]
[Date "2023.03.28"]
[WhiteClock "0:01:19"]
[BlackClock "0:01:36"]

1. d4 {[%clk 0:03:00]}  d6 {[%clk 0:03:00]} 2. c4 {[%clk 0:03:00]}  Nf6 {[%clk 0:03:01]} 3. Nf3 {[%clk 0:02:58]}  Nbd7 {[%clk 0:03:02]} 4. g3 {[%clk 0:02:58]}  e5 {[%clk 0:03:02]} 5. Bg2 {[%clk 0:02:58]}  Be7 {[%clk 0:03:02]} 6. Nc3 {[%clk 0:02:58]}  O-O {[%clk 0:03:02]} 7. O-O {[%clk 0:02:58]}  Re8 {[%clk 0:03:02]} 8. e4 {[%clk 0:02:57]}  Bf8 {[%clk 0:03:02]} 9. h3 {[%clk 0:02:56]}  c6 {[%clk 0:03:02]} 10. Be3 {[%clk 0:02:56]}  exd4 {[%clk 0:03:00]} 11. Nxd4 {[%clk 0:02:56]}  Nc5 {[%clk 0:03:00]} 12. Qc2 {[%clk 0:02:55]}  a5 {[%clk 0:02:59]} 13. Rad1 {[%clk 0:02:54]}  Qe7 {[%clk 0:02:58]} 14. Rfe1 {[%clk 0:02:52]}  Nfxe4 {[%clk 0:02:54]} 15. Nxe4 {[%clk 0:02:48]}  Nxe4 {[%clk 0:02:55]} 16. Bf4 {[%clk 0:02:28]}  d5 {[%clk 0:02:51]} 17. cxd5 {[%clk 0:02:27]}  cxd5 {[%clk 0:02:50]} 18. f3 {[%clk 0:02:27]}  g5 {[%clk 0:02:19]} 19. Bc1 {[%clk 0:02:15]}  Qd6 {[%clk 0:02:10]} 20. fxe4 {[%clk 0:02:11]}  Qxg3 {[%clk 0:02:10]} 21. Qf2 {[%clk 0:02:04]}  Qxf2+ {[%clk 0:02:01]} 22. Kxf2 {[%clk 0:02:02]}  Bc5 {[%clk 0:02:00]} 23. exd5 {[%clk 0:01:55]}  Bf5 {[%clk 0:01:57]} 24. Rxe8+ {[%clk 0:01:46]}  Rxe8 {[%clk 0:01:58]} 25. Bxg5 {[%clk 0:01:45]}  Be4 {[%clk 0:01:45]} 26. Bxe4 {[%clk 0:01:36]}  Rxe4 {[%clk 0:01:46]} 27. Be3 {[%clk 0:01:36]}  f5 {[%clk 0:01:44]} 28. Kf3 {[%clk 0:01:30]}  Re5 {[%clk 0:01:37]} 29. Nc2 {[%clk 0:01:23]}  Bf8 {[%clk 0:01:36]} 30. d6 {[%clk 0:01:19]} 1-0


[Site "https://www.chess.com"]

[Event "Titled Tuesday Blitz March 28 Late 2023"]
[White "Zeynalli, Rashad"]
[Black "ArtemDyachuk"]
[WhiteFideId "13403320"]
[WhiteElo "2125"]
[BlackElo "2378"]
[Result "1/2-1/2"]
[Round "04"]
[TimeControl "180+2"]
[Date "2023.03.28"]
[WhiteClock "0:00:10"]
[BlackClock "0:00:03"]

1. d4 {[%clk 0:03:00]}  Nf6 {[%clk 0:02:57]} 2. Bf4 {[%clk 0:02:58]}  g6 {[%clk 0:02:56]} 3. e3 {[%clk 0:02:58]}  Bg7 {[%clk 0:02:56]} 4. Nf3 {[%clk 0:02:59]}  O-O {[%clk 0:02:56]} 5. Be2 {[%clk 0:02:59]}  d6 {[%clk 0:02:56]} 6. h3 {[%clk 0:03:00]}  Nbd7 {[%clk 0:02:57]} 7. O-O {[%clk 0:03:00]}  Qe8 {[%clk 0:02:57]} 8. c4 {[%clk 0:03:01]}  e5 {[%clk 0:02:58]} 9. Bh2 {[%clk 0:03:01]}  c6 {[%clk 0:02:55]} 10. Nc3 {[%clk 0:03:02]}  e4 {[%clk 0:02:56]} 11. Nd2 {[%clk 0:03:00]}  Qe6 {[%clk 0:02:54]} 12. Nb3 {[%clk 0:02:23]}  d5 {[%clk 0:02:43]} 13. cxd5 {[%clk 0:02:21]}  cxd5 {[%clk 0:02:37]} 14. Nb5 {[%clk 0:02:20]}  Ne8 {[%clk 0:02:23]} 15. Rc1 {[%clk 0:02:15]}  a6 {[%clk 0:02:22]} 16. Nc7 {[%clk 0:02:16]}  Nxc7 {[%clk 0:02:22]} 17. Rxc7 {[%clk 0:02:16]}  Re8 {[%clk 0:01:32]} 18. Qd2 {[%clk 0:02:13]}  Bf8 {[%clk 0:01:30]} 19. Rfc1 {[%clk 0:02:02]}  Bd6 {[%clk 0:01:28]} 20. Bxd6 {[%clk 0:02:02]}  Qxd6 {[%clk 0:01:28]} 21. R1c2 {[%clk 0:01:58]}  Nb6 {[%clk 0:01:08]} 22. Qa5 {[%clk 0:01:52]}  Nd7 {[%clk 0:00:33]} 23. Qa4 {[%clk 0:01:36]}  b5 {[%clk 0:00:26]} 24. Bxb5 {[%clk 0:01:33]}  Nb6 {[%clk 0:00:22]} 25. Bxe8 {[%clk 0:01:07]}  Nxa4 {[%clk 0:00:22]} 26. Bxa4 {[%clk 0:00:40]}  Be6 {[%clk 0:00:19]} 27. a3 {[%clk 0:00:37]}  Rb8 {[%clk 0:00:13]} 28. R7c6 {[%clk 0:00:33]}  Qe7 {[%clk 0:00:09]} 29. Nc5 {[%clk 0:00:28]}  Bf5 {[%clk 0:00:06]} 30. Nxa6 {[%clk 0:00:20]}  Ra8 {[%clk 0:00:04]} 31. Nc7 {[%clk 0:00:20]}  Rxa4 {[%clk 0:00:03]} 32. Nxd5 {[%clk 0:00:18]}  Qg5 {[%clk 0:00:03]} 33. Kh2 {[%clk 0:00:14]}  Be6 {[%clk 0:00:03]} 34. Nf4 {[%clk 0:00:13]}  Qf5 {[%clk 0:00:03]} 35. R6c5 {[%clk 0:00:12]}  Qf6 {[%clk 0:00:03]} 36. Rc6 {[%clk 0:00:12]}  Qf5 {[%clk 0:00:03]} 37. R2c5 {[%clk 0:00:12]}  Qf6 {[%clk 0:00:02]} 38. d5 {[%clk 0:00:12]}  g5 {[%clk 0:00:01]} 39. Nxe6 {[%clk 0:00:05]}  Qe5+ {[%clk 0:00:02]} 40. g3 {[%clk 0:00:04]}  fxe6 {[%clk 0:00:02]} 41. dxe6 {[%clk 0:00:04]}  Qxb2 {[%clk 0:00:03]} 42. e7 {[%clk 0:00:04]}  Qxf2+ {[%clk 0:00:02]} 43. Kh1 {[%clk 0:00:04]}  Qf1+ {[%clk 0:00:03]} 44. Kh2 {[%clk 0:00:05]}  Qf2+ {[%clk 0:00:04]} 45. Kh1 {[%clk 0:00:05]}  Qe1+ {[%clk 0:00:05]} 46. Kg2 {[%clk 0:00:05]}  Qe2+ {[%clk 0:00:05]} 47. Kg1 {[%clk 0:00:05]}  Qxe3+ {[%clk 0:00:06]} 48. Kg2 {[%clk 0:00:06]}  Qf3+ {[%clk 0:00:06]} 49. Kh2 {[%clk 0:00:06]}  Qe2+ {[%clk 0:00:06]} 50. Kg1 {[%clk 0:00:06]}  Qe1+ {[%clk 0:00:04]} 51. Kg2 {[%clk 0:00:06]}  Qd2+ {[%clk 0:00:04]} 52. Kh1 {[%clk 0:00:06]}  Kf7 {[%clk 0:00:03]} 53. Re5 {[%clk 0:00:06]}  Qe1+ {[%clk 0:00:03]} 54. Kg2 {[%clk 0:00:06]}  Qe2+ {[%clk 0:00:03]} 55. Kg1 {[%clk 0:00:06]}  Qd1+ {[%clk 0:00:03]} 56. Kh2 {[%clk 0:00:07]}  Qd2+ {[%clk 0:00:02]} 57. Kh1 {[%clk 0:00:07]}  Qe1+ {[%clk 0:00:02]} 58. Kh2 {[%clk 0:00:08]}  Qf2+ {[%clk 0:00:02]} 59. Kh1 {[%clk 0:00:09]}  Qf3+ {[%clk 0:00:01]} 60. Kh2 {[%clk 0:00:10]}  Qf2+ {[%clk 0:00:02]} 61. Kh1 {[%clk 0:00:10]}  Qe1+ {[%clk 0:00:03]} 1/2-1/2


[Site "https://www.chess.com"]

[Event "Titled Tuesday Blitz March 28 Late 2023"]
[White "Van Dael, Siem"]
[Black "MKlose11"]
[WhiteFideId "1049771"]
[WhiteElo "2336"]
[BlackElo "2540"]
[Result "0-1"]
[Round "04"]
[TimeControl "180+2"]
[Date "2023.03.28"]
[WhiteClock "0:00:41"]
[BlackClock "0:01:43"]

1. d4 {[%clk 0:03:00]}  Nf6 {[%clk 0:02:57]} 2. c4 {[%clk 0:03:01]}  g6 {[%clk 0:02:58]} 3. Nc3 {[%clk 0:03:01]}  c5 {[%clk 0:02:58]} 4. d5 {[%clk 0:02:59]}  Bg7 {[%clk 0:02:58]} 5. e4 {[%clk 0:02:58]}  d6 {[%clk 0:02:58]} 6. f4 {[%clk 0:02:56]}  O-O {[%clk 0:02:58]} 7. Nf3 {[%clk 0:02:57]}  e6 {[%clk 0:02:58]} 8. Be2 {[%clk 0:02:57]}  exd5 {[%clk 0:02:59]} 9. cxd5 {[%clk 0:02:58]}  Re8 {[%clk 0:02:58]} 10. e5 {[%clk 0:02:58]}  dxe5 {[%clk 0:02:46]} 11. fxe5 {[%clk 0:02:58]}  Ng4 {[%clk 0:02:47]} 12. e6 {[%clk 0:02:57]}  fxe6 {[%clk 0:02:44]} 13. Bg5 {[%clk 0:02:57]}  Bf6 {[%clk 0:02:41]} 14. Bxf6 {[%clk 0:02:31]}  Qxf6 {[%clk 0:02:42]} 15. Qd2 {[%clk 0:02:27]}  e5 {[%clk 0:02:24]} 16. Ne4 {[%clk 0:02:08]}  Qf4 {[%clk 0:02:24]} 17. Qxf4 {[%clk 0:01:45]}  exf4 {[%clk 0:02:25]} 18. Nd6 {[%clk 0:01:40]}  Rd8 {[%clk 0:02:22]} 19. Nxc8 {[%clk 0:01:40]}  Rxc8 {[%clk 0:02:23]} 20. O-O-O {[%clk 0:01:31]}  Nf2 {[%clk 0:02:20]} 21. d6 {[%clk 0:01:26]}  Nxh1 {[%clk 0:02:20]} 22. Bc4+ {[%clk 0:01:26]}  Kg7 {[%clk 0:02:19]} 23. Rxh1 {[%clk 0:01:22]}  Nc6 {[%clk 0:02:14]} 24. Ng5 {[%clk 0:01:13]}  Nd4 {[%clk 0:02:11]} 25. h4 {[%clk 0:01:10]}  h6 {[%clk 0:02:08]} 26. Ne4 {[%clk 0:01:06]}  Re8 {[%clk 0:02:03]} 27. Bd5 {[%clk 0:01:01]}  Rab8 {[%clk 0:01:51]} 28. Rf1 {[%clk 0:00:53]}  Re5 {[%clk 0:01:50]} 29. Nc3 {[%clk 0:00:47]}  b5 {[%clk 0:01:46]} 30. Rxf4 {[%clk 0:00:46]}  Rxd5 {[%clk 0:01:44]} 31. Nxd5 {[%clk 0:00:41]}  Ne2+ {[%clk 0:01:44]} 32. Kc2 {[%clk 0:00:41]}  Nxf4 {[%clk 0:01:45]} 33. Nxf4 {[%clk 0:00:41]}  Kf6 {[%clk 0:01:43]} 0-1


[Site "https://www.chess.com"]